fUSD/lending_fUSD_20250519
["ID","MTS","AMOUNT","RATE_DAILY","PERIOD"]
[361610750,1747638649748,-400.0,0.00013698,2]
[361610751,1747638649757,-420.0,0.00013698,2]
[361610752,1747638649767,-656.6,0.00013698,2]
[361610753,1747638650025,-420.0,0.00013698,2]
[361610754,1747638650037,-622.87,0.00013698,2]
[361610755,1747638650047,-420.0,0.00013698,2]
[361610756,1747638650056,-971.71,0.00013698,2]
[361610757,1747638650066,-420.0,0.00013698,2]
[361610758,1747638650076,-420.0,0.00013698,2]
[361610759,1747638650085,-420.0,0.00013698,2]
[361610760,1747638650094,-420.0,0.00013698,2]
[361610761,1747638650103,-400.0,0.00013698,2]
[361610762,1747638650113,-420.0,0.00013698,2]
[361610763,1747638650122,-420.0,0.00013698,2]
[361610764,1747638650131,-420.0,0.00013698,2]
[361610765,1747638650140,-810.0,0.00013698,2]
[361610766,1747638650149,-420.0,0.00013698,2]
[361610767,1747638650159,-420.0,0.00013698,2]
[361610768,1747638650167,-420.0,0.00013698,2]
[361610769,1747638650177,-427.39,0.00013698,2]
[361610770,1747638650186,-420.0,0.00013698,2]
[361610771,1747638650195,-400.0,0.00013698,2]
[361610772,1747638650204,-420.45,0.00013698,2]
[361610773,1747638650213,-198.96836746,0.00013698,2]
[361610774,1747638650222,-151.0,0.00013698,2]
[361610775,1747638650231,-420.0,0.00013698,2]
[361610776,1747638650241,-2052.64,0.00013698,2]
[361610777,1747638650250,-420.0,0.00013698,2]
[361610778,1747638650259,-420.0,0.00013698,2]
[361610779,1747638650270,-400.0,0.00013698,2]
[361610780,1747638650278,-420.0,0.00013698,2]
[361610781,1747638650287,-420.0,0.00013698,2]
[361610782,1747638650296,-572.35,0.00013698,2]
[361610783,1747638650305,-400.0,0.00013698,2]
[361610784,1747638650314,-400.0,0.00013698,2]
[361610785,1747638650323,-1125.03,0.00013698,2]
[361610786,1747638650332,-420.0,0.00013698,2]
[361610787,1747638650341,-250.0,0.00013698,2]
[361610788,1747638650350,-400.0,0.00013698,2]
[361610789,1747638650359,-420.0,0.00013698,2]
[361610790,1747638650369,-717.78,0.00013698,2]
[361610791,1747638650378,-420.0,0.00013698,2]
[361610792,1747638650387,-420.0,0.00013698,2]
[361610793,1747638650396,-151.0,0.00013698,2]
[361610794,1747638650405,-151.0,0.00013698,2]
[361610795,1747638650414,-420.0,0.00013698,2]
[361610796,1747638650423,-151.0,0.00013698,2]
[361610797,1747638650431,-400.0,0.00013698,2]
[361610798,1747638650441,-420.0,0.00013698,2]
[361610799,1747638650450,-463.02,0.00013698,2]
[361610800,1747638650465,-651.14,0.00013698,2]
[361610801,1747638650476,-152.602475,0.00013698,2]
[361610802,1747638650485,-1023.28,0.00013698,2]
[361610803,1747638650495,-420.0,0.00013698,2]
[361610804,1747638650504,-400.0,0.00013698,2]
[361610805,1747638650514,-420.0,0.00013698,2]
[361610806,1747638650524,-420.0,0.00013698,2]
[361610807,1747638650536,-420.0,0.00013698,2]
[361610808,1747638650545,-420.0,0.00013698,2]
[361610809,1747638650554,-420.0,0.00013698,2]
[361610810,1747638650563,-628.73,0.00013698,2]
[361610811,1747638650572,-400.0,0.00013698,2]
[361610812,1747638650582,-509.63,0.00013698,2]
[361610813,1747638650591,-420.0,0.00013698,2]
[361610814,1747638650600,-613.12,0.00013698,2]
[361610815,1747638650610,-288.849166,0.00013698,2]
[361610816,1747638650620,-1284.89,0.00013698,2]
[361610817,1747638650631,-220.787877,0.00013698,2]
[361610818,1747638650640,-420.0,0.00013698,2]
[361610819,1747638650648,-420.0,0.00013698,2]
[361610820,1747638650657,-420.0,0.00013698,2]
[361610821,1747638650667,-420.0,0.00013698,2]
[361610822,1747638650676,-510.38,0.00013698,2]
[361610823,1747638650685,-288.849166,0.00013698,2]
[361610824,1747638650694,-400.0,0.00013698,2]
[361610825,1747638650703,-420.0,0.00013698,2]
[361610826,1747638650712,-220.787877,0.00013698,2]
[361610827,1747638650722,-420.0,0.00013698,2]
[361610828,1747638650732,-550.01,0.00013698,2]
[361610829,1747638650741,-420.0,0.00013698,2]
[361610830,1747638650751,-420.0,0.00013698,2]
[361610831,1747638650760,-420.0,0.00013698,2]
[361610832,1747638650770,-151.0,0.00013698,2]
[361610833,1747638650779,-420.0,0.00013698,2]
[361610834,1747638650788,-151.0,0.00013698,2]
[361610835,1747638650797,-420.0,0.00013698,2]
[361610836,1747638650807,-420.0,0.00013698,2]
[361610837,1747638650816,-492.63599658,0.00013698,2]
[361610838,1747638650825,-420.0,0.00013698,2]
[361610839,1747638650835,-420.0,0.00013698,2]
[361610840,1747638650845,-420.0,0.00013698,2]
[361610841,1747638650854,-465.96,0.00013698,2]
[361610842,1747638650865,-825.98,0.00013698,2]
[361610843,1747638650874,-420.0,0.00013698,2]
[361610844,1747638650883,-420.0,0.00013698,2]
[361610845,1747638650893,-420.0,0.00013698,2]
[361610846,1747638650902,-420.0,0.00013698,2]
[361610847,1747638650911,-151.0,0.00013698,2]
[361610848,1747638650920,-402.06116307,0.00013698,2]
[361610849,1747638650930,-595.62,0.00013698,2]
[361610850,1747638650939,-420.0,0.00013698,2]
[361610851,1747638650949,-420.0,0.00013698,2]
[361610852,1747638650958,-420.0,0.00013698,2]
[361610853,1747638650967,-420.0,0.00013698,2]
[361610854,1747638650977,-400.0,0.00013698,2]
[361610855,1747638650987,-734.84,0.00013698,2]
[361610856,1747638650996,-400.0,0.00013698,2]
[361610857,1747638651004,-420.0,0.00013698,2]
[361610858,1747638651014,-420.0,0.00013698,2]
[361610859,1747638651023,-420.0,0.00013698,2]
[361610860,1747638651032,-420.0,0.00013698,2]
[361610861,1747638651041,-420.0,0.00013698,2]
[361610862,1747638651050,-400.0,0.00013698,2]
[361610863,1747638651060,-420.0,0.00013698,2]
[361610864,1747638651069,-448.66,0.00013698,2]
[361610865,1747638651078,-547.68,0.00013698,2]
[361610866,1747638651087,-458.34,0.00013698,2]
[361610867,1747638651096,-557.74,0.00013698,2]
[361610868,1747638651105,-420.0,0.00013698,2]
[361610869,1747638651114,-400.0,0.00013698,2]
[361610870,1747638651123,-420.0,0.00013698,2]
[361610871,1747638651132,-520.94,0.00013698,2]
[361610872,1747638651142,-420.0,0.00013698,2]
[361610873,1747638651151,-420.0,0.00013698,2]
[361610874,1747638651160,-400.0,0.00013698,2]
[361610875,1747638651169,-629.77,0.00013698,2]
[361610876,1747638651178,-420.0,0.00013698,2]
[361610877,1747638651187,-420.0,0.00013698,2]
[361610878,1747638651197,-500.0,0.00013698,2]
[361610879,1747638651206,-420.0,0.00013698,2]
[361610880,1747638651216,-500.0,0.00013698,2]
[361610881,1747638651226,-500.0,0.00013698,2]
[361610882,1747638651236,-500.0,0.00013698,2]
[361610883,1747638651245,-420.0,0.00013698,2]
[361610884,1747638651256,-615.31,0.00013698,2]
[361610885,1747638651265,-419.79,0.00013698,2]
[361610886,1747638651275,-420.0,0.00013698,2]
[361610887,1747638651284,-420.0,0.00013698,2]
[361610888,1747638651293,-885.14,0.00013698,2]
[361610889,1747638651302,-420.0,0.00013698,2]
[361610890,1747638651312,-980.1,0.00013698,2]
[361610891,1747638651320,-1050.11,0.00013698,2]
[361610892,1747638651330,-400.0,0.00013698,2]
[361610893,1747638651339,-420.0,0.00013698,2]
[361610894,1747638651348,-420.0,0.00013698,2]
[361610895,1747638651357,-420.0,0.00013698,2]
[361610896,1747638651366,-432.45,0.00013698,2]
[361610897,1747638651375,-420.0,0.00013698,2]
[361610898,1747638651385,-171.11193594,0.00013698,2]
[361610899,1747638651394,-794.4,0.00013698,2]
[361610900,1747638651403,-400.0,0.00013698,2]
[361610901,1747638651412,-420.0,0.00013698,2]
[361610902,1747638651422,-400.0,0.00013698,2]
[361610903,1747638651431,-420.0,0.00013698,2]
[361610904,1747638651440,-420.0,0.00013698,2]
[361610905,1747638651450,-420.0,0.00013698,2]
[361610906,1747638651467,-420.0,0.00013698,2]
[361610907,1747638651477,-420.0,0.00013698,2]
[361610908,1747638651487,-400.0,0.00013698,2]
[361610909,1747638651497,-420.0,0.00013698,2]
[361610910,1747638651507,-151.0,0.00013698,2]
[361610911,1747638651517,-151.0,0.00013698,2]
[361610912,1747638651526,-420.0,0.00013698,2]
[361610913,1747638651539,-451.43,0.00013698,2]
[361610914,1747638651549,-420.0,0.00013698,2]
[361610915,1747638651558,-420.0,0.00013698,2]
[361610916,1747638651567,-400.0,0.00013698,2]
[361610917,1747638651576,-522.87,0.00013698,2]
[361610918,1747638651586,-1932.63,0.00013698,2]
[361610919,1747638651595,-400.0,0.00013698,2]
[361610920,1747638651604,-1151.23,0.00013698,2]
[361610921,1747638651615,-300.0,0.00013698,2]
[361610922,1747638651625,-400.0,0.00013698,2]
[361610923,1747638651635,-400.0,0.00013698,2]
[361610924,1747638651645,-400.0,0.00013698,2]
[361610925,1747638651654,-400.0,0.00013698,2]
[361610926,1747638651663,-333.79630221,0.00013698,2]
[361610927,1747638651673,-400.0,0.00013698,2]
[361610928,1747638651682,-608.38,0.00013698,2]
[361610929,1747638651692,-523.02,0.00013698,2]
[361610930,1747638651701,-420.0,0.00013698,2]
[361610931,1747638651710,-420.0,0.00013698,2]
[361610932,1747638651720,-420.0,0.00013698,2]
[361610933,1747638651729,-420.0,0.00013698,2]
[361610934,1747638651738,-428.23,0.00013698,2]
[361610935,1747638651747,-420.0,0.00013698,2]
[361610936,1747638651757,-420.0,0.00013698,2]
[361610937,1747638651766,-420.0,0.00013698,2]
[361610938,1747638651775,-598.28,0.00013698,2]
[361610939,1747638651784,-420.0,0.00013698,2]
[361610940,1747638651794,-420.0,0.00013698,2]
[361610941,1747638651803,-420.0,0.00013698,2]
[361610942,1747638651814,-420.0,0.00013698,2]
[361610943,1747638651823,-420.0,0.00013698,2]
[361610944,1747638651832,-429.81,0.00013698,2]
[361610945,1747638651841,-400.0,0.00013698,2]
[361610946,1747638651851,-420.0,0.00013698,2]
[361610947,1747638651861,-459.54,0.00013698,2]
[361610948,1747638651870,-420.0,0.00013698,2]
[361610949,1747638651879,-420.0,0.00013698,2]
[361610950,1747638651889,-420.0,0.00013698,2]
[361610951,1747638651898,-420.0,0.00013698,2]
[361610952,1747638651908,-400.0,0.00013698,2]
[361610953,1747638651917,-381.18692361,0.00013698,2]
[361610954,1747638651926,-400.0,0.00013698,2]
[361610955,1747638651935,-420.0,0.00013698,2]
[361610956,1747638651944,-420.0,0.00013698,2]
[361610957,1747638651954,-420.0,0.00013698,2]
[361610958,1747638651963,-420.0,0.00013698,2]
[361610959,1747638651973,-400.0,0.00013698,2]
[361610960,1747638651983,-541.8,0.00013698,2]
[361610961,1747638651993,-986.55,0.00013698,2]
[361610962,1747638652002,-420.0,0.00013698,2]
[361610963,1747638652012,-1108.02,0.00013698,2]
[361610964,1747638652021,-453.5,0.00013698,2]
[361610965,1747638652031,-499.78,0.00013698,2]
[361610966,1747638652040,-420.0,0.00013698,2]
[361610967,1747638652049,-420.0,0.00013698,2]
[361610968,1747638652059,-960.96,0.00013698,2]
[361610969,1747638652068,-420.0,0.00013698,2]
[361610970,1747638652077,-876.12,0.00013698,2]
[361610971,1747638652087,-661.58,0.00013698,2]
[361610972,1747638652096,-402.40823011,0.00013698,2]
[361610973,1747638652106,-497.35,0.00013698,2]
[361610974,1747638652115,-400.0,0.00013698,2]
[361610975,1747638652125,-374.64583591,0.00013698,2]
[361610976,1747638652133,-420.0,0.00013698,2]
[361610977,1747638652142,-332.11453447,0.00013698,2]
[361610978,1747638652151,-420.0,0.00013698,2]
[361610979,1747638652160,-207.08554818,0.00013698,2]
[361610980,1747638652230,-192.91445182,0.00013698,2]
[361610981,1747638652240,-151.0,0.00013698,2]
[361610982,1747638652249,-139.5685477,0.00013698,2]
[361610983,1747638652270,-280.4314523,0.00013698,2]
[361610984,1747638652280,-292.31855282,0.00013698,2]
[361610985,1747638652322,-127.68144718,0.00013698,2]
[361610986,1747638652331,-399.90467883,0.00013698,2]
[361610987,1747638652342,-586.88532117,0.00013698,2]
[361610988,1747638652352,-420.0,0.00013698,2]
[361610989,1747638652361,-141.11467883,0.00013698,2]
[361610990,1747638665915,150.051915,0.000273,120]
[361610991,1747638667885,150.051915,0.000273,120]
[361610992,1747638668835,150.051915,0.000273,120]
[361610993,1747638669342,150.051915,0.000273,120]
[361610994,1747638669738,150.051915,0.000273,120]
[361610995,1747639199195,2280.0,0.0002739,120]
[361610996,1747639332637,606.94,0.00010459,2]
[361610997,1747639394278,1573.85131606,0.00010959,2]
[361610998,1747639394302,426.14868394,0.00010959,2]
[361610999,1747639400546,200.0,0.00010959,2]
[361611000,1747639527508,2152.60263212,0.00011,2]
[361611001,1747639527536,586.00208536,0.00011,2]
[361611002,1747639541804,4474.54061882,0.0002,30]
[361611003,1747639576173,-161.17344391,0.00011848,2]
[361611004,1747639578283,-42.82655609,0.00011848,2]
[361611008,1747639721772,512.31101519,0.00015,30]
[361611009,1747639725763,4267.09968628,0.000266,120]
[361611011,1747639757150,-338.36153054,0.00011954,2]
[361611012,1747639757170,-72445.35120869,0.00012,2]
[361611013,1747639768111,-506.61691915,0.00012,2]
[361611014,1747639768136,-713.74,0.00012054,2]
[361611015,1747639768158,-269.7,0.00012095,2]
[361611016,1747639786290,1000.0,0.00012257,2]
[361611017,1747639804372,500.0,0.00011999,2]
[361611018,1747639804424,500.0,0.00011999,2]
[361611019,1747639804464,500.0,0.00011999,2]
[361611020,1747639804514,500.0,0.00011999,2]
[361611021,1747639804650,453.75525485,0.00011999,2]
[361611028,1747639832603,-300.0,0.00011998,2]
[361611029,1747639832613,-46.24474515,0.00011999,2]
[361611030,1747639832622,-500.0,0.00011999,2]
[361611031,1747639832632,-500.0,0.00011999,2]
[361611032,1747639832641,-500.0,0.00011999,2]
[361611033,1747639832651,-500.0,0.00011999,2]
[361611034,1747639832661,-500.0,0.00011999,2]
[361611035,1747639832670,-500.0,0.00011999,2]
[361611036,1747639832680,-500.0,0.00011999,2]
[361611037,1747639832689,-500.0,0.00011999,2]
[361611038,1747639832698,-302.10520792,0.00011999,2]
[361611039,1747639832707,-500.0,0.00011999,2]
[361611040,1747639832717,-500.0,0.00011999,2]
[361611041,1747639832727,-500.0,0.00011999,2]
[361611042,1747639832736,-500.0,0.00011999,2]
[361611043,1747639832747,-500.0,0.00011999,2]
[361611044,1747639832756,-21700.14,0.00012251,2]
[361611045,1747639832767,-448.27,0.00012428,2]
[361611046,1747639832776,-315.01,0.00012483,2]
[361611048,1747639832786,-179.78,0.00012557,2]
[361611049,1747639832796,-226.8743,0.00012593,2]
[361611051,1747639832806,-237.32,0.00012625,2]
[361611054,1747639832816,-381.66,0.00012674,2]
[361611056,1747639832825,-375.45294857,0.00012692,2]
[361611058,1747639832835,-300.0,0.00012692,2]
[361611059,1747639832845,-150.0,0.00012692,2]
[361611061,1747639832854,-1200.0,0.00012692,2]
[361611063,1747639832864,-3367.32919265,0.00012693,2]
[361611066,1747639832985,-1098.31521521,0.00012693,2]
[361611067,1747639833005,-133155.39559214,0.00012693,2]
[361611068,1747639833015,-1122.47,0.00012722,2]
[361611069,1747639833026,-606.94,0.00012723,2]
[361611070,1747639833038,-1772.30692109,0.000129,2]
[361611071,1747639833048,-1772.30692094,0.00012934,2]
[361611072,1747639833059,-1772.30692094,0.00012969,2]
[361611073,1747639833071,-4203.0,0.00013,2]
[361611074,1747639833082,-162.9,0.00013,2]
[361611075,1747639833094,-162.9,0.00013,2]
[361611076,1747639833105,-162.9,0.00013,2]
[361611077,1747639833116,-162.9,0.00013,2]
[361611078,1747639833127,-162.9,0.00013,2]
[361611079,1747639833137,-1772.30692094,0.00013003,2]
[361611080,1747639833148,-620.87901874,0.00013007,2]
[361611081,1747639833159,-1772.30692094,0.00013038,2]
[361611082,1747639833168,-1772.30692094,0.00013072,2]
[361611083,1747639833178,-151.0,0.00013093,2]
[361611084,1747639833188,-232.20882859,0.00013093,2]
[361611085,1747639833200,-207.4,0.00013093,2]
[361611086,1747639833210,-500.0,0.00013096,2]
[361611087,1747639833221,-10019.48732018,0.000131,2]
[361611088,1747639833231,-13000.0,0.000131,2]
[361611089,1747639833241,-1772.30692094,0.00013107,2]
[361611090,1747639833253,-1772.30692094,0.00013141,2]
[361611091,1747639833263,-420.0,0.00013171,2]
[361611092,1747639833273,-1772.30692094,0.00013176,2]
[361611093,1747639833284,-1772.30692094,0.0001321,2]
[361611094,1747639833293,-1772.30692094,0.00013245,2]
[361611095,1747639833303,-200.0,0.0001326,2]
[361611096,1747639833312,-1772.30692094,0.00013279,2]
[361611097,1747639833322,-1772.30692094,0.00013314,2]
[361611098,1747639833332,-1772.30692094,0.00013348,2]
[361611099,1747639833341,-1772.30692094,0.00013383,2]
[361611100,1747639833351,-150.051915,0.00013398,2]
[361611101,1747639833361,-150.051915,0.00013398,2]
[361611102,1747639833371,-150.051915,0.00013398,2]
[361611103,1747639833381,-150.051915,0.00013398,2]
[361611104,1747639833391,-1772.30692094,0.00013417,2]
[361611105,1747639833401,-1772.30692094,0.00013452,2]
[361611106,1747639833411,-1772.30692094,0.00013486,2]
[361611107,1747639833421,-1425.91522084,0.00013492,2]
[361611108,1747639833430,-161.57554527,0.00013492,2]
[361611109,1747639833440,-150.051915,0.00013498,2]
[361611110,1747639833449,-150.051915,0.00013498,2]
[361611111,1747639833459,-150.051915,0.00013498,2]
[361611112,1747639833469,-150.051915,0.00013498,2]
[361611113,1747639833478,-1772.30692094,0.00013521,2]
[361611114,1747639833488,-1425.91522079,0.00013528,2]
[361611115,1747639833498,-1772.30692094,0.00013555,2]
[361611116,1747639833507,-713.74,0.00013561,2]
[361611117,1747639833517,-1425.91522079,0.00013564,2]
[361611118,1747639833528,-639.66488612,0.00013566,2]
[361611119,1747639833538,-342.64138639,0.00013582,2]
[361611120,1747639833548,-1772.30692094,0.0001359,2]
[361611121,1747639833558,-46866.21762456,0.00013592,2]
[361611122,1747639833570,-850.89198,0.00013592,2]
[361611123,1747639833582,-4408.1687423,0.00013592,2]
[361611124,1747639833641,-7518.55924457,0.00013592,2]
[361611125,1747639833652,-329.76386651,0.00013592,2]
[361611126,1747639838361,-82633.48954206,0.00013592,2]
[361611127,1747639838371,-167.02631939,0.00013592,2]
[361611128,1747639838380,-150.051915,0.00013598,2]
[361611129,1747639838390,-150.051915,0.00013598,2]
[361611130,1747639838400,-150.051915,0.00013598,2]
[361611131,1747639838409,-150.051915,0.00013598,2]
[361611132,1747639838418,-2000.0,0.000136,3]
[361611133,1747639838431,-5154.46,0.000136,2]
[361611134,1747639838440,-1000.0,0.000136,2]
[361611135,1747639838450,-1000.0,0.000136,2]
[361611136,1747639838459,-1000.0,0.000136,2]
[361611137,1747639838468,-1000.0,0.000136,2]
[361611138,1747639838477,-1000.0,0.000136,2]
[361611139,1747639838486,-1001.0,0.000136,2]
[361611140,1747639838496,-1425.91522079,0.000136,2]
[361611141,1747639838505,-500.0,0.00013616,2]
[361611142,1747639838514,-468.250197,0.00013622,2]
[361611143,1747639838524,-1772.30692094,0.00013624,2]
[361611144,1747639838533,-1425.91522079,0.00013636,2]
[361611145,1747639838542,-1772.30692094,0.00013659,2]
[361611146,1747639838551,-200.0,0.0001367,2]
[361611147,1747639838560,-200.0,0.0001367,2]
[361611148,1747639838569,-1425.91522079,0.00013673,2]
[361611149,1747639838578,-321.82618663,0.00013673,2]
[361611150,1747639838588,-507.55713397,0.00013673,2]
[361611151,1747639838597,-500.0,0.00013673,2]
[361611152,1747639838607,-500.0,0.00013673,2]
[361611153,1747639838616,-500.0,0.00013673,2]
[361611154,1747639838626,-500.0,0.00013673,2]
[361611155,1747639838635,-158.6,0.00013682,2]
[361611156,1747639838644,-934.0,0.00013684,2]
[361611157,1747639838653,-4043.0,0.00013684,2]
[361611158,1747639838663,-6830.0,0.00013684,2]
[361611159,1747639838672,-31667.92031874,0.00013689,2]
[361611160,1747639838682,-509922.57416566,0.00013692,2]
[361611161,1747639838700,-1485.52612365,0.00013692,2]
[361611162,1747639838734,-900.48983006,0.00013692,2]
[361611163,1747639838745,-779.79811136,0.00013692,2]
[361611164,1747639838764,-2057.16773238,0.00013692,2]
[361611165,1747639838776,-136381.43506381,0.00013692,2]
[361611166,1747639838785,-368371.97387549,0.00013692,2]
[361611167,1747639838794,-4902.67990114,0.00013692,2]
[361611168,1747639838804,-151.0,0.00013692,2]
[361611169,1747639838814,-1772.30692094,0.00013693,2]
[361611170,1747639838824,-161.57554527,0.00013696,2]
[361611171,1747639838833,-1000.0,0.00013697,2]
[361611172,1747639838843,-1132.0,0.00013698,2]
[361611173,1747639838853,-209.34054004,0.00013698,2]
[361611174,1747639838863,-339258.43179616,0.00013698,2]
[361611175,1747639838872,-151.0,0.00013698,2]
[361611176,1747639838881,-233.146234,0.00013698,2]
[361611177,1747639838891,-166.113405,0.00013698,2]
[361611178,1747639838901,-152.118844,0.00013698,2]
[361611179,1747639838910,-151.0,0.00013698,2]
[361611180,1747639838919,-155.334708,0.00013698,2]
[361611181,1747639838928,-1333.138269,0.00013698,2]
[361611182,1747639839197,-151.0,0.00013698,2]
[361611183,1747639839207,-151.0,0.00013698,2]
[361611184,1747639839216,-152.257693,0.00013698,2]
[361611185,1747639839226,-151.589517,0.00013698,2]
[361611186,1747639839235,-151.0,0.00013698,2]
[361611187,1747639839244,-151.0,0.00013698,2]
[361611188,1747639839256,-151.0,0.00013698,2]
[361611189,1747639839265,-434.63921099,0.00013698,2]
[361611190,1747639839274,-151.0,0.00013698,2]
[361611191,1747639839284,-151.0,0.00013698,2]
[361611192,1747639839293,-400.0,0.00013698,2]
[361611193,1747639839302,-400.19389544,0.00013698,2]
[361611194,1747639839311,-200.18413577,0.00013698,2]
[361611195,1747639839320,-400.0,0.00013698,2]
[361611196,1747639839329,-400.0,0.00013698,2]
[361611197,1747639839338,-420.0,0.00013698,2]
[361611198,1747639839347,-420.0,0.00013698,2]
[361611199,1747639839357,-420.0,0.00013698,2]
[361611200,1747639839366,-401.95708254,0.00013698,2]
[361611201,1747639839376,-156.515828,0.00013698,2]
[361611202,1747639839385,-420.0,0.00013698,2]
[361611203,1747639839394,-226.53275604,0.00013698,2]
[361611204,1747639839403,-420.0,0.00013698,2]
[361611205,1747639839412,-420.0,0.00013698,2]
[361611206,1747639839421,-400.0,0.00013698,2]
[361611207,1747639839430,-400.0,0.00013698,2]
[361611208,1747639839440,-155.439529,0.00013698,2]
[361611209,1747639839449,-420.0,0.00013698,2]
[361611210,1747639839458,-477.34,0.00013698,2]
[361611211,1747639839467,-400.0,0.00013698,2]
[361611212,1747639839477,-420.0,0.00013698,2]
[361611213,1747639839486,-420.0,0.00013698,2]
[361611214,1747639839495,-420.0,0.00013698,2]
[361611215,1747639839507,-501.04375402,0.00013698,2]
[361611216,1747639839517,-420.0,0.00013698,2]
[361611217,1747639839528,-420.0,0.00013698,2]
[361611218,1747639839537,-471.93,0.00013698,2]
[361611219,1747639839547,-400.0,0.00013698,2]
[361611220,1747639839556,-524.47,0.00013698,2]
[361611221,1747639839566,-420.0,0.00013698,2]
[361611222,1747639839575,-400.0,0.00013698,2]
[361611223,1747639839584,-420.0,0.00013698,2]
[361611224,1747639839593,-420.0,0.00013698,2]
[361611225,1747639839602,-420.0,0.00013698,2]
[361611226,1747639839611,-420.0,0.00013698,2]
[361611227,1747639839620,-400.0,0.00013698,2]
[361611228,1747639839629,-166.434673,0.00013698,2]
[361611229,1747639839638,-420.0,0.00013698,2]
[361611230,1747639839647,-420.0,0.00013698,2]
[361611231,1747639839656,-420.0,0.00013698,2]
[361611232,1747639839665,-420.0,0.00013698,2]
[361611233,1747639839674,-420.0,0.00013698,2]
[361611234,1747639839684,-400.0,0.00013698,2]
[361611235,1747639839693,-420.0,0.00013698,2]
[361611236,1747639839702,-420.0,0.00013698,2]
[361611237,1747639839711,-404.77903032,0.00013698,2]
[361611238,1747639839720,-400.0,0.00013698,2]
[361611239,1747639839730,-420.0,0.00013698,2]
[361611240,1747639839739,-400.0,0.00013698,2]
[361611241,1747639839750,-402.71287528,0.00013698,2]
[361611242,1747639839760,-400.0,0.00013698,2]
[361611243,1747639839769,-380.63435672,0.00013698,2]
[361611244,1747639839778,-559.26,0.00013698,2]
[361611245,1747639839788,-462.23,0.00013698,2]
[361611246,1747639839797,-420.0,0.00013698,2]
[361611247,1747639839806,-400.0,0.00013698,2]
[361611248,1747639839815,-420.0,0.00013698,2]
[361611249,1747639839825,-420.0,0.00013698,2]
[361611250,1747639839834,-400.0,0.00013698,2]
[361611251,1747639839843,-400.0,0.00013698,2]
[361611252,1747639839852,-400.0,0.00013698,2]
[361611253,1747639839862,-400.0,0.00013698,2]
[361611254,1747639839870,-400.0,0.00013698,2]
[361611255,1747639839880,-480.0,0.00013698,2]
[361611256,1747639839889,-420.0,0.00013698,2]
[361611257,1747639839899,-401.12069269,0.00013698,2]
[361611258,1747639839908,-400.0,0.00013698,2]
[361611259,1747639839917,-420.0,0.00013698,2]
[361611260,1747639839926,-420.0,0.00013698,2]
[361611261,1747639839936,-432.82,0.00013698,2]
[361611262,1747639839945,-400.0,0.00013698,2]
[361611263,1747639839954,-420.0,0.00013698,2]
[361611264,1747639839963,-173.213281,0.00013698,2]
[361611265,1747639839973,-420.0,0.00013698,2]
[361611266,1747639839982,-400.0,0.00013698,2]
[361611267,1747639839992,-420.0,0.00013698,2]
[361611268,1747639840004,-420.0,0.00013698,2]
[361611269,1747639840014,-459.9,0.00013698,2]